[Event "*** Titled Tuesday Blitz"]
[Site "Chess.com"]
[Date "2020.04.21"]
[Round "9"]
[White "Colombiano07"]
[Black "JoachimMouhamad"]
[Result "1-0"]
[WhiteElo "2239"]
[BlackElo "2348"]
[TimeControl "180+1"]
[EndTime "11:50:12 PDT"]
[Termination "Colombiano07 won on time"]

1. d4 {[%clk 0:03:00.9]} 1... Nf6 {[%clk 0:02:58.2]} 2. Bf4 {[%clk 0:02:59.3]}
2... d5 {[%clk 0:02:52.4]} 3. e3 {[%clk 0:02:59.6]} 3... c5 {[%clk 0:02:47.5]}
4. c3 {[%clk 0:02:59.4]} 4... e6 {[%clk 0:02:44.2]} 5. Bd3 {[%clk 0:02:59.2]}
5... Bd6 {[%clk 0:02:40.4]} 6. Bg3 {[%clk 0:02:59]} 6... O-O {[%clk 0:02:38.3]}
7. Nd2 {[%clk 0:02:58.8]} 7... Qc7 {[%clk 0:02:35.9]} 8. Ngf3 {[%clk 0:02:49.1]}
8... Nbd7 {[%clk 0:02:25.6]} 9. Bxd6 {[%clk 0:02:44.9]} 9... Qxd6 {[%clk
0:02:25]} 10. O-O {[%clk 0:02:45.8]} 10... e5 {[%clk 0:02:24.1]} 11. dxe5 {[%clk
0:02:46.7]} 11... Nxe5 {[%clk 0:02:23.8]} 12. Nxe5 {[%clk 0:02:47.6]} 12... Qxe5
{[%clk 0:02:24.7]} 13. Nf3 {[%clk 0:02:48.2]} 13... Qh5 {[%clk 0:02:16.6]} 14.
c4 {[%clk 0:02:43.2]} 14... dxc4 {[%clk 0:01:49.8]} 15. Bxc4 {[%clk 0:02:44.1]}
15... Bg4 {[%clk 0:01:48.2]} 16. Be2 {[%clk 0:02:28.5]} 16... Rfd8 {[%clk
0:01:42.6]} 17. Qa4 {[%clk 0:02:23.2]} 17... a6 {[%clk 0:01:36]} 18. h3 {[%clk
0:02:21.7]} 18... Bd7 {[%clk 0:01:09.1]} 19. Qb3 {[%clk 0:02:11.7]} 19... b5
{[%clk 0:00:59.3]} 20. Rad1 {[%clk 0:01:44]} 20... c4 {[%clk 0:00:55.2]} 21. Qc2
{[%clk 0:01:41.4]} 21... Qf5 {[%clk 0:00:52.8]} 22. Qc1 {[%clk 0:01:31.4]} 22...
Ne4 {[%clk 0:00:39.2]} 23. Nd4 {[%clk 0:01:23.8]} 23... Qg6 {[%clk 0:00:38.5]}
24. Bf3 {[%clk 0:01:03.3]} 24... Rac8 {[%clk 0:00:26.1]} 25. Ne2 {[%clk
0:01:00.8]} 25... Bxh3 {[%clk 0:00:22.6]} 26. Nf4 {[%clk 0:00:58.8]} 26... Qf5
{[%clk 0:00:16.9]} 27. Nxh3 {[%clk 0:00:58.6]} 27... Nc5 {[%clk 0:00:15.6]} 28.
Rxd8+ {[%clk 0:00:57.2]} 28... Rxd8 {[%clk 0:00:15.3]} 29. Rd1 {[%clk
0:00:57.1]} 29... Nd3 {[%clk 0:00:15.1]} 30. Qc2 {[%clk 0:00:52.7]} 30... Qf6
{[%clk 0:00:13.7]} 31. Be2 {[%clk 0:00:48.1]} 31... Ne5 {[%clk 0:00:11.2]} 32.
Rxd8+ {[%clk 0:00:48.1]} 32... Qxd8 {[%clk 0:00:12.1]} 33. Qd1 {[%clk
0:00:48.5]} 33... Qe7 {[%clk 0:00:11]} 34. Nf4 {[%clk 0:00:46.1]} 34... h6
{[%clk 0:00:10.2]} 35. a3 {[%clk 0:00:40.8]} 35... g6 {[%clk 0:00:09.5]} 36. Qd5
{[%clk 0:00:37.5]} 36... Kg7 {[%clk 0:00:08.4]} 37. Bf3 {[%clk 0:00:28.5]} 37...
Qf6 {[%clk 0:00:07.7]} 38. Be4 {[%clk 0:00:18.3]} 38... Ng4 {[%clk 0:00:06]} 39.
Qd4 {[%clk 0:00:15.5]} 39... g5 {[%clk 0:00:03.7]} 40. Qxf6+ {[%clk 0:00:14.8]}
40... Nxf6 {[%clk 0:00:04.6]} 41. Nd5 {[%clk 0:00:15.4]} 41... Nxe4 {[%clk
0:00:04.1]} 42. Nc7 {[%clk 0:00:15.5]} 42... Nc5 {[%clk 0:00:03.4]} 43. Kf1
{[%clk 0:00:15.3]} 43... Nd3 {[%clk 0:00:02.7]} 44. Nxa6 {[%clk 0:00:14.7]}
44... Nxb2 {[%clk 0:00:02.6]} 45. Nc7 {[%clk 0:00:14.2]} 1-0

[Event "*** Titled Tuesday Blitz"]
[Site "Chess.com"]
[Date "2020.04.21"]
[Round "9"]
[White "Trickov"]
[Black "tamarozi99"]
[Result "1-0"]
[WhiteElo "2274"]
[BlackElo "1978"]
[TimeControl "180+1"]
[EndTime "11:50:13 PDT"]
[Termination "Trickov won by checkmate"]

1. d4 {[%clk 0:03:00.9]} 1... Nf6 {[%clk 0:02:59.1]} 2. Nf3 {[%clk 0:02:59.3]}
2... g6 {[%clk 0:02:59.2]} 3. c4 {[%clk 0:02:56.8]} 3... Bg7 {[%clk 0:02:59]} 4.
g3 {[%clk 0:02:56.2]} 4... O-O {[%clk 0:02:58.5]} 5. Bg2 {[%clk 0:02:56]} 5...
d6 {[%clk 0:02:58.7]} 6. Nc3 {[%clk 0:02:55.2]} 6... a6 {[%clk 0:02:58.9]} 7.
O-O {[%clk 0:02:53.9]} 7... Nc6 {[%clk 0:02:59]} 8. d5 {[%clk 0:02:53.1]} 8...
Na5 {[%clk 0:02:57.2]} 9. Nd2 {[%clk 0:02:53.1]} 9... b5 {[%clk 0:02:27.3]} 10.
cxb5 {[%clk 0:02:49.9]} 10... axb5 {[%clk 0:02:28.2]} 11. Nxb5 {[%clk
0:02:47.6]} 11... Ba6 {[%clk 0:02:26.1]} 12. Nc3 {[%clk 0:02:45]} 12... Nd7
{[%clk 0:02:14.7]} 13. Qc2 {[%clk 0:02:38.2]} 13... Rb8 {[%clk 0:02:14.5]} 14.
Rd1 {[%clk 0:02:29.2]} 14... Nc5 {[%clk 0:01:55.1]} 15. b3 {[%clk 0:02:19.2]}
15... Bxe2 {[%clk 0:01:43]} 16. Nxe2 {[%clk 0:02:06.3]} 16... Bxa1 {[%clk
0:01:43.9]} 17. Nc3 {[%clk 0:02:05.8]} 17... e6 {[%clk 0:01:25.2]} 18. Ba3
{[%clk 0:01:57.1]} 18... Bxc3 {[%clk 0:01:10.3]} 19. Qxc3 {[%clk 0:01:54.8]}
19... Nab7 {[%clk 0:01:07.4]} 20. b4 {[%clk 0:01:13.1]} 20... Na4 {[%clk
0:00:51.4]} 21. Qb3 {[%clk 0:00:51.7]} 21... e5 {[%clk 0:00:20]} 22. Qxa4 {[%clk
0:00:48.3]} 22... Ra8 {[%clk 0:00:20]} 23. Qb3 {[%clk 0:00:47.7]} 23... Qf6
{[%clk 0:00:17.6]} 24. Ne4 {[%clk 0:00:45.5]} 24... Qe7 {[%clk 0:00:17.8]} 25.
Bc1 {[%clk 0:00:41.8]} 25... f6 {[%clk 0:00:15.5]} 26. f4 {[%clk 0:00:36.9]}
26... Rfb8 {[%clk 0:00:15]} 27. Qc2 {[%clk 0:00:30.9]} 27... Nd8 {[%clk
0:00:08.2]} 28. a3 {[%clk 0:00:29.1]} 28... Nf7 {[%clk 0:00:07.1]} 29. fxe5
{[%clk 0:00:24.8]} 29... Nxe5 {[%clk 0:00:06.5]} 30. Bb2 {[%clk 0:00:23.2]}
30... Rf8 {[%clk 0:00:06.1]} 31. Rf1 {[%clk 0:00:22.3]} 31... h6 {[%clk
0:00:05.5]} 32. Qc3 {[%clk 0:00:18]} 32... Kh7 {[%clk 0:00:04.9]} 33. h3 {[%clk
0:00:17.7]} 33... Rac8 {[%clk 0:00:03.9]} 34. Kh1 {[%clk 0:00:17.7]} 34... c6
{[%clk 0:00:04.1]} 35. dxc6 {[%clk 0:00:16.9]} 35... Rxc6 {[%clk 0:00:04.3]} 36.
Nxf6+ {[%clk 0:00:14.7]} 36... Rxf6 {[%clk 0:00:04]} 37. Bxc6 {[%clk 0:00:12.2]}
37... Nxc6 {[%clk 0:00:03]} 38. Rxf6 {[%clk 0:00:10.9]} 38... Qe4+ {[%clk
0:00:02.1]} 39. Rf3 {[%clk 0:00:10.1]} 39... Qe2 {[%clk 0:00:01.6]} 40. Qg7#
{[%clk 0:00:08.9]} 1-0

[Event "*** Titled Tuesday Blitz"]
[Site "Chess.com"]
[Date "2020.04.21"]
[Round "9"]
[White "ChessTraining77"]
[Black "Poghosyan_Suren"]
[Result "0-1"]
[WhiteElo "2582"]
[BlackElo "2513"]
[TimeControl "180+1"]
[EndTime "11:50:15 PDT"]
[Termination "Poghosyan_Suren won by resignation"]

1. e4 {[%clk 0:03:00.9]} 1... e6 {[%clk 0:02:54.6]} 2. d4 {[%clk 0:02:58.4]}
2... d5 {[%clk 0:02:54.6]} 3. Nc3 {[%clk 0:02:58.5]} 3... Bb4 {[%clk 0:02:54]}
4. e5 {[%clk 0:02:58.3]} 4... c5 {[%clk 0:02:54.2]} 5. a3 {[%clk 0:02:58.5]}
5... Bxc3+ {[%clk 0:02:54.7]} 6. bxc3 {[%clk 0:02:58.6]} 6... Qc7 {[%clk
0:02:54.9]} 7. Nf3 {[%clk 0:02:58.4]} 7... b6 {[%clk 0:02:48.6]} 8. Bb5+ {[%clk
0:02:55.8]} 8... Bd7 {[%clk 0:02:48.4]} 9. Bd3 {[%clk 0:02:55.9]} 9... c4 {[%clk
0:02:48.3]} 10. Be2 {[%clk 0:02:54.9]} 10... Ba4 {[%clk 0:02:49.2]} 11. O-O
{[%clk 0:02:52.4]} 11... Nd7 {[%clk 0:02:45.2]} 12. Re1 {[%clk 0:02:51.4]} 12...
O-O-O {[%clk 0:02:42.6]} 13. h4 {[%clk 0:02:50.2]} 13... h6 {[%clk 0:02:41.9]}
14. Bf1 {[%clk 0:02:50]} 14... Ne7 {[%clk 0:02:42]} 15. g3 {[%clk 0:02:49.6]}
15... Nc6 {[%clk 0:02:41.2]} 16. Bh3 {[%clk 0:02:48]} 16... Kb7 {[%clk
0:02:37.6]} 17. Kg2 {[%clk 0:02:47.7]} 17... Rde8 {[%clk 0:02:34]} 18. Bf4
{[%clk 0:02:45.3]} 18... Rhg8 {[%clk 0:02:22.8]} 19. Qd2 {[%clk 0:02:44.1]}
19... b5 {[%clk 0:02:07.6]} 20. Nh2 {[%clk 0:02:43]} 20... Qd8 {[%clk
0:02:03.2]} 21. Ng4 {[%clk 0:02:40.9]} 21... g5 {[%clk 0:02:01.5]} 22. hxg5
{[%clk 0:02:40.4]} 22... hxg5 {[%clk 0:02:02.4]} 23. Be3 {[%clk 0:02:40.2]}
23... Qe7 {[%clk 0:02:02.3]} 24. Rh1 {[%clk 0:02:36.3]} 24... Rg6 {[%clk
0:01:22]} 25. f3 {[%clk 0:02:34.9]} 25... Reg8 {[%clk 0:01:20.2]} 26. Kf2 {[%clk
0:02:32.3]} 26... f5 {[%clk 0:01:18.5]} 27. exf6 {[%clk 0:02:19.2]} 27... Nxf6
{[%clk 0:01:18.4]} 28. Ne5 {[%clk 0:02:18.6]} 28... Nxe5 {[%clk 0:01:13.8]} 29.
dxe5 {[%clk 0:02:18]} 29... Nd7 {[%clk 0:01:09.1]} 30. Qd4 {[%clk 0:02:15.6]}
30... Ra8 {[%clk 0:00:43.9]} 31. Rh2 {[%clk 0:02:01.8]} 31... Qg7 {[%clk
0:00:43.1]} 32. f4 {[%clk 0:02:00.8]} 32... gxf4 {[%clk 0:00:42.5]} 33. gxf4
{[%clk 0:01:59.9]} 33... Qe7 {[%clk 0:00:14.1]} 34. Bg2 {[%clk 0:01:50.9]} 34...
Nb6 {[%clk 0:00:14.1]} 35. f5 {[%clk 0:01:38.3]} 35... exf5 {[%clk 0:00:11.6]}
36. Bxd5+ {[%clk 0:01:37.4]} 36... Nxd5 {[%clk 0:00:12.5]} 37. Qxd5+ {[%clk
0:01:37.5]} 37... Ka6 {[%clk 0:00:09]} 38. Rah1 {[%clk 0:01:29.8]} 38... Rag8
{[%clk 0:00:08]} 39. Ke1 {[%clk 0:01:09.3]} 39... Qb7 {[%clk 0:00:06.7]} 40.
Qxb7+ {[%clk 0:01:03]} 40... Kxb7 {[%clk 0:00:07.6]} 41. Rh7+ {[%clk 0:01:02.5]}
41... Kc6 {[%clk 0:00:08.1]} 42. Rxa7 {[%clk 0:00:58.7]} 42... Bxc2 {[%clk
0:00:08.4]} 43. Rhh7 {[%clk 0:00:58.4]} 43... Kd5 {[%clk 0:00:08.1]} 44. Rad7+
{[%clk 0:00:53.6]} 44... Ke4 {[%clk 0:00:08.2]} 45. Bf2 {[%clk 0:00:50.9]} 45...
Bd3 {[%clk 0:00:07.4]} 46. Rd4+ {[%clk 0:00:49.9]} 46... Kxe5 {[%clk 0:00:07.3]}
47. Re7+ {[%clk 0:00:48.7]} 47... Re6 {[%clk 0:00:07.2]} 48. Rb7 {[%clk
0:00:47.6]} 48... f4 {[%clk 0:00:06.7]} 49. Rxb5+ {[%clk 0:00:46.5]} 49... Kf6+
{[%clk 0:00:07.1]} 50. Kd1 {[%clk 0:00:45.8]} 50... f3 {[%clk 0:00:06]} 51. Rf4+
{[%clk 0:00:45]} 51... Ke7 {[%clk 0:00:06.2]} 52. Bh4+ {[%clk 0:00:43.8]} 52...
Kd7 {[%clk 0:00:06.3]} 53. Rd4+ {[%clk 0:00:42]} 53... Kc6 {[%clk 0:00:06.5]}
54. Rg5 {[%clk 0:00:40.2]} 54... Rxg5 {[%clk 0:00:05.2]} 55. Bxg5 {[%clk
0:00:39.6]} 55... f2 {[%clk 0:00:05.5]} 0-1

[Event "*** Titled Tuesday Blitz"]
[Site "Chess.com"]
[Date "2020.04.21"]
[Round "9"]
[White "noblerone"]
[Black "inegrepus"]
[Result "1-0"]
[WhiteElo "2459"]
[BlackElo "2289"]
[TimeControl "180+1"]
[EndTime "11:50:15 PDT"]
[Termination "noblerone won by resignation"]

1. d4 {[%clk 0:03:00.9]} 1... Nf6 {[%clk 0:02:58.5]} 2. Nf3 {[%clk 0:03:00.8]}
2... d5 {[%clk 0:02:58.3]} 3. Bg5 {[%clk 0:02:59.8]} 3... e6 {[%clk 0:02:58.1]}
4. Nbd2 {[%clk 0:02:59.4]} 4... Be7 {[%clk 0:02:58.3]} 5. e3 {[%clk 0:02:59.7]}
5... c5 {[%clk 0:02:58.2]} 6. c3 {[%clk 0:02:59.7]} 6... cxd4 {[%clk 0:02:58]}
7. exd4 {[%clk 0:02:59.5]} 7... Nc6 {[%clk 0:02:58.1]} 8. Bd3 {[%clk 0:02:59.8]}
8... h6 {[%clk 0:02:58.1]} 9. Bh4 {[%clk 0:02:59.1]} 9... Qb6 {[%clk 0:02:57.5]}
10. Rb1 {[%clk 0:02:58.1]} 10... Qa5 {[%clk 0:02:55.9]} 11. a3 {[%clk
0:02:55.8]} 11... Bd7 {[%clk 0:02:51.7]} 12. O-O {[%clk 0:02:53.3]} 12... a6
{[%clk 0:02:47.9]} 13. Re1 {[%clk 0:02:50.1]} 13... O-O {[%clk 0:02:47.2]} 14.
Ne5 {[%clk 0:02:46.6]} 14... Qc7 {[%clk 0:02:44.9]} 15. f4 {[%clk 0:02:42.4]}
15... b5 {[%clk 0:02:43]} 16. Ndf3 {[%clk 0:02:34.5]} 16... Ne8 {[%clk
0:02:35.8]} 17. Bg3 {[%clk 0:02:16.6]} 17... Nxe5 {[%clk 0:02:25.3]} 18. Nxe5
{[%clk 0:02:03.6]} 18... Nd6 {[%clk 0:02:24.2]} 19. Qh5 {[%clk 0:01:50.2]} 19...
Bf6 {[%clk 0:02:14.6]} 20. Bh4 {[%clk 0:01:43.7]} 20... Bxh4 {[%clk 0:02:04.4]}
21. Qxh4 {[%clk 0:01:44.6]} 21... f6 {[%clk 0:01:51.9]} 22. Ng6 {[%clk 0:01:18]}
22... Rf7 {[%clk 0:01:46.4]} 23. Qg3 {[%clk 0:01:14]} 23... Nf5 {[%clk
0:01:38.7]} 24. Bxf5 {[%clk 0:01:07.7]} 24... exf5 {[%clk 0:01:37.7]} 25. Re3
{[%clk 0:00:55.7]} 25... Re8 {[%clk 0:01:36.1]} 26. Rbe1 {[%clk 0:00:56]} 26...
Rxe3 {[%clk 0:01:35.8]} 27. Qxe3 {[%clk 0:00:44]} 27... Qd6 {[%clk 0:01:33.2]}
28. h4 {[%clk 0:00:37.4]} 28... Bc6 {[%clk 0:00:54.6]} 29. h5 {[%clk 0:00:36.5]}
29... Bd7 {[%clk 0:00:54]} 30. Re2 {[%clk 0:00:31.8]} 30... Bc6 {[%clk
0:00:49.7]} 31. Ne7+ {[%clk 0:00:30.8]} 31... Kh7 {[%clk 0:00:46.6]} 32. Nxf5
{[%clk 0:00:30.9]} 32... Qd7 {[%clk 0:00:43.8]} 33. Qd3 {[%clk 0:00:26.9]} 33...
Kg8 {[%clk 0:00:42.2]} 34. Nh4 {[%clk 0:00:26.6]} 34... f5 {[%clk 0:00:41]} 35.
Ng6 {[%clk 0:00:26.2]} 35... Rf6 {[%clk 0:00:40]} 36. Re7 {[%clk 0:00:25.9]}
36... Qd6 {[%clk 0:00:38]} 37. Qe3 {[%clk 0:00:26.1]} 37... a5 {[%clk
0:00:34.2]} 38. Qe5 {[%clk 0:00:21.9]} 38... b4 {[%clk 0:00:32.9]} 39. axb4
{[%clk 0:00:18.4]} 39... axb4 {[%clk 0:00:33.2]} 40. Qxd6 {[%clk 0:00:18.5]}
40... Rxd6 {[%clk 0:00:33]} 41. cxb4 {[%clk 0:00:19.4]} 41... Bb5 {[%clk
0:00:26.8]} 42. Rb7 {[%clk 0:00:18.4]} 42... Ba4 {[%clk 0:00:26.4]} 43. b5
{[%clk 0:00:17.2]} 43... Re6 {[%clk 0:00:24.4]} 44. Ne5 {[%clk 0:00:15.4]} 44...
Bc2 {[%clk 0:00:19.5]} 45. Rb8+ {[%clk 0:00:14.5]} 45... Kh7 {[%clk 0:00:18.5]}
46. Ng6 {[%clk 0:00:14.9]} 46... Rxg6 {[%clk 0:00:18.8]} 47. hxg6+ {[%clk
0:00:15.5]} 47... Kxg6 {[%clk 0:00:19.7]} 48. b6 {[%clk 0:00:16.1]} 1-0

[Event "*** Titled Tuesday Blitz"]
[Site "Chess.com"]
[Date "2020.04.21"]
[Round "9"]
[White "DanielRensch"]
[Black "Gyapiking"]
[Result "1/2-1/2"]
[WhiteElo "2490"]
[BlackElo "2382"]
[TimeControl "180+1"]
[EndTime "11:50:18 PDT"]
[Termination "Game drawn - insufficient material"]

1. e4 {[%clk 0:03:00.9]} 1... d6 {[%clk 0:02:57.7]} 2. d4 {[%clk 0:02:59.6]}
2... g6 {[%clk 0:02:57.9]} 3. Nc3 {[%clk 0:02:59.4]} 3... c6 {[%clk 0:02:58.2]}
4. Bg5 {[%clk 0:02:58.9]} 4... Bg7 {[%clk 0:02:56.4]} 5. Qd2 {[%clk 0:02:58.7]}
5... Qb6 {[%clk 0:02:56.3]} 6. Be3 {[%clk 0:02:55.7]} 6... Qxb2 {[%clk
0:02:55.3]} 7. Rb1 {[%clk 0:02:54.5]} 7... Qa3 {[%clk 0:02:55.5]} 8. Bc4 {[%clk
0:02:54.1]} 8... b5 {[%clk 0:02:54.2]} 9. Bb3 {[%clk 0:02:54.1]} 9... Nf6 {[%clk
0:02:50.6]} 10. f3 {[%clk 0:02:54]} 10... O-O {[%clk 0:02:48.6]} 11. Nge2 {[%clk
0:02:53.3]} 11... Qa5 {[%clk 0:02:35.3]} 12. g4 {[%clk 0:02:48]} 12... Nbd7
{[%clk 0:02:28.6]} 13. h4 {[%clk 0:02:47.1]} 13... b4 {[%clk 0:02:26]} 14. Nd1
{[%clk 0:02:46.2]} 14... e5 {[%clk 0:02:23.1]} 15. h5 {[%clk 0:02:43.6]} 15...
exd4 {[%clk 0:02:04.4]} 16. Nxd4 {[%clk 0:02:44.5]} 16... Nc5 {[%clk 0:01:58.2]}
17. hxg6 {[%clk 0:02:36.7]} 17... Nxb3 {[%clk 0:01:56.2]} 18. gxh7+ {[%clk
0:02:28.8]} 18... Kh8 {[%clk 0:01:55.4]} 19. axb3 {[%clk 0:02:27.6]} 19... Bxg4
{[%clk 0:01:49.5]} 20. Bh6 {[%clk 0:02:20.1]} 20... Bxh6 {[%clk 0:01:43.9]} 21.
Qxh6 {[%clk 0:02:18.5]} 21... Qe5 {[%clk 0:01:43.4]} 22. Nxc6 {[%clk 0:01:43]}
22... Qg3+ {[%clk 0:01:29.8]} 23. Nf2 {[%clk 0:01:42.7]} 23... Qxf3 {[%clk
0:01:27.4]} 24. Nd4 {[%clk 0:01:41.8]} 24... Qc3+ {[%clk 0:01:16]} 25. Qd2
{[%clk 0:01:37.6]} 25... Rae8 {[%clk 0:01:10.9]} 26. Qxc3 {[%clk 0:01:00.1]}
26... bxc3 {[%clk 0:01:10.6]} 27. O-O {[%clk 0:01:00.1]} 27... Bc8 {[%clk
0:01:03.9]} 28. Rfe1 {[%clk 0:00:55.3]} 28... Bb7 {[%clk 0:01:03.2]} 29. Ra1
{[%clk 0:00:48.2]} 29... Nxe4 {[%clk 0:01:02.9]} 30. Rxa7 {[%clk 0:00:46.3]}
30... Nxf2 {[%clk 0:00:59.3]} 31. Rxe8 {[%clk 0:00:40.7]} 31... Nh3+ {[%clk
0:00:54.8]} 32. Kh2 {[%clk 0:00:40.5]} 32... Rxe8 {[%clk 0:00:54.5]} 33. Kxh3
{[%clk 0:00:28.3]} 33... Be4 {[%clk 0:00:53.8]} 34. Rc7 {[%clk 0:00:24.2]} 34...
Bxh7 {[%clk 0:00:52.7]} 35. Rxc3 {[%clk 0:00:23.1]} 35... Re4 {[%clk 0:00:50.9]}
36. Nf3 {[%clk 0:00:20]} 36... Kg7 {[%clk 0:00:50.3]} 37. Kg3 {[%clk 0:00:14.4]}
37... Bf5 {[%clk 0:00:46.9]} 38. Rc6 {[%clk 0:00:08.7]} 38... Re3 {[%clk
0:00:43.7]} 39. Kf4 {[%clk 0:00:08]} 39... Be4 {[%clk 0:00:37.8]} 40. Kxe3
{[%clk 0:00:07.8]} 40... Bxc6 {[%clk 0:00:37.5]} 41. Nd4 {[%clk 0:00:08.4]}
41... Bb7 {[%clk 0:00:32.8]} 42. Nf5+ {[%clk 0:00:07.8]} 42... Kf6 {[%clk
0:00:32]} 43. Nxd6 {[%clk 0:00:08.7]} 43... Bg2 {[%clk 0:00:31]} 44. Kd4 {[%clk
0:00:07.6]} 44... Ke6 {[%clk 0:00:31.1]} 45. Nc4 {[%clk 0:00:07.3]} 45... f5
{[%clk 0:00:30.8]} 46. b4 {[%clk 0:00:07.3]} 46... Bb7 {[%clk 0:00:27.7]} 47. b5
{[%clk 0:00:06.6]} 47... f4 {[%clk 0:00:27.9]} 48. b6 {[%clk 0:00:06.6]} 48...
f3 {[%clk 0:00:27.1]} 49. Ke3 {[%clk 0:00:05]} 49... Kd5 {[%clk 0:00:19.9]} 50.
Na5 {[%clk 0:00:04.9]} 50... Bc8 {[%clk 0:00:19.6]} 51. b7 {[%clk 0:00:04.9]}
51... Bxb7 {[%clk 0:00:19.2]} 52. Nxb7 {[%clk 0:00:05.8]} 52... Kc4 {[%clk
0:00:19.2]} 53. Nd6+ {[%clk 0:00:03.3]} 53... Kc3 {[%clk 0:00:19.1]} 54. Ne4+
{[%clk 0:00:03.2]} 54... Kxc2 {[%clk 0:00:19.3]} 55. Kxf3 {[%clk 0:00:03.7]}
1/2-1/2

[Event "*** Titled Tuesday Blitz"]
[Site "Chess.com"]
[Date "2020.04.21"]
[Round "9"]
[White "drd_davi"]
[Black "vinniethepooh"]
[Result "0-1"]
[WhiteElo "2462"]
[BlackElo "2630"]
[TimeControl "180+1"]
[EndTime "11:50:19 PDT"]
[Termination "vinniethepooh won by checkmate"]

1. e4 {[%clk 0:02:59.9]} 1... c5 {[%clk 0:03:00.2]} 2. Nf3 {[%clk 0:02:59.8]}
2... d6 {[%clk 0:03:00.6]} 3. d4 {[%clk 0:02:57.9]} 3... cxd4 {[%clk 0:03:01.5]}
4. Qxd4 {[%clk 0:02:58.8]} 4... Nc6 {[%clk 0:03:00.5]} 5. Bb5 {[%clk 0:02:58.9]}
5... Bd7 {[%clk 0:03:01]} 6. Bxc6 {[%clk 0:02:59.1]} 6... Bxc6 {[%clk
0:03:01.9]} 7. c4 {[%clk 0:03:00]} 7... f5 {[%clk 0:03:01.9]} 8. exf5 {[%clk
0:02:57.5]} 8... Qa5+ {[%clk 0:02:58.5]} 9. Nc3 {[%clk 0:02:27.4]} 9... Qxf5
{[%clk 0:02:36.4]} 10. O-O {[%clk 0:02:15]} 10... Bxf3 {[%clk 0:02:25.7]} 11.
gxf3 {[%clk 0:02:14.8]} 11... Nf6 {[%clk 0:02:26.2]} 12. Nb5 {[%clk 0:01:53.8]}
12... Qd7 {[%clk 0:02:10.3]} 13. Re1 {[%clk 0:01:49.2]} 13... Kf7 {[%clk
0:01:51.1]} 14. Nxa7 {[%clk 0:01:39.6]} 14... Qf5 {[%clk 0:01:20.6]} 15. Kg2
{[%clk 0:01:02.9]} 15... g5 {[%clk 0:00:59]} 16. Nb5 {[%clk 0:00:55.4]} 16... h5
{[%clk 0:00:50.5]} 17. Nc7 {[%clk 0:00:37.6]} 17... Rc8 {[%clk 0:00:35.9]} 18.
Ne6 {[%clk 0:00:37.7]} 18... g4 {[%clk 0:00:30.4]} 19. f4 {[%clk 0:00:34.2]}
19... Bh6 {[%clk 0:00:28]} 20. Ng5+ {[%clk 0:00:30.9]} 20... Bxg5 {[%clk
0:00:27.2]} 21. fxg5 {[%clk 0:00:31.8]} 21... Nd7 {[%clk 0:00:19.1]} 22. g6+
{[%clk 0:00:24.5]} 22... Kxg6 {[%clk 0:00:14.5]} 23. Rxe7 {[%clk 0:00:24]} 23...
Nf6 {[%clk 0:00:15]} 24. Be3 {[%clk 0:00:20.5]} 24... h4 {[%clk 0:00:14.6]} 25.
Qf4 {[%clk 0:00:17]} 25... Rhe8 {[%clk 0:00:10.7]} 26. Qxf5+ {[%clk 0:00:14.5]}
26... Kxf5 {[%clk 0:00:11.6]} 27. Rxb7 {[%clk 0:00:14.7]} 27... Rxc4 {[%clk
0:00:10.3]} 28. Rd1 {[%clk 0:00:13.9]} 28... h3+ {[%clk 0:00:10]} 29. Kf1 {[%clk
0:00:13.8]} 29... d5 {[%clk 0:00:07.1]} 30. Bd4 {[%clk 0:00:13.5]} 30... Ne4
{[%clk 0:00:05.6]} 31. Rf7+ {[%clk 0:00:12.3]} 31... Kg6 {[%clk 0:00:05.6]} 32.
Rf4 {[%clk 0:00:12.9]} 32... Kg5 {[%clk 0:00:05.1]} 33. Rf7 {[%clk 0:00:11.6]}
33... Rc2 {[%clk 0:00:05.4]} 34. Rg7+ {[%clk 0:00:11.6]} 34... Kh6 {[%clk
0:00:04.9]} 35. Rxg4 {[%clk 0:00:11.1]} 35... Nd2+ {[%clk 0:00:05.2]} 36. Kg1
{[%clk 0:00:10.9]} 36... Nf3+ {[%clk 0:00:05.4]} 37. Kf1 {[%clk 0:00:10.9]}
37... Nxh2+ {[%clk 0:00:04.4]} 38. Kg1 {[%clk 0:00:10.6]} 38... Nf3+ {[%clk
0:00:05.3]} 39. Kh1 {[%clk 0:00:10.3]} 39... Rce2 {[%clk 0:00:04.6]} 40. Be3+
{[%clk 0:00:09.7]} 40... Kh5 {[%clk 0:00:04.7]} 41. Rg3 {[%clk 0:00:09.4]} 41...
R8xe3 {[%clk 0:00:04.3]} 42. fxe3 {[%clk 0:00:08.7]} 42... Rh2# {[%clk
0:00:04.4]} 0-1